fUSD/lending_fUSD_20250510
["ID","MTS","AMOUNT","RATE_DAILY","PERIOD"]
[360549610,1746881445706,-401.57846309,0.00019898,2]
[360549611,1746881445715,-400.0,0.00019898,2]
[360549612,1746881445726,-400.0,0.00019898,2]
[360549613,1746881445736,-400.0,0.00019898,2]
[360549614,1746881445745,-400.0,0.00019898,2]
[360549615,1746881445754,-400.0,0.00019898,2]
[360549616,1746881445764,-400.0,0.00019898,2]
[360549617,1746881445774,-406.05671728,0.00019898,2]
[360549618,1746881445783,-400.0,0.00019898,2]
[360549619,1746881445793,-408.34650322,0.00019898,2]
[360549620,1746881445802,-413.6,0.00019898,2]
[360549621,1746881445811,-419.53,0.00019898,2]
[360549622,1746881445821,-452.28036573,0.00019898,2]
[360549623,1746881445830,-659.28,0.00019898,2]
[360549624,1746881445839,-419.27247548,0.00019898,2]
[360549625,1746881445848,-400.0,0.00019898,2]
[360549626,1746881445859,-400.0,0.00019898,2]
[360549627,1746881445869,-400.0,0.00019898,2]
[360549628,1746881445878,-408.64,0.00019898,2]
[360549629,1746881445887,-151.0,0.00019898,2]
[360549630,1746881445896,-400.0,0.00019898,2]
[360549631,1746881445906,-400.0,0.00019898,2]
[360549632,1746881445916,-523.04,0.00019898,2]
[360549633,1746881445925,-151.0,0.00019898,2]
[360549634,1746881445935,-471.71,0.00019898,2]
[360549635,1746881445944,-400.0,0.00019898,2]
[360549636,1746881445953,-400.0,0.00019898,2]
[360549637,1746881445963,-400.0,0.00019898,2]
[360549638,1746881445972,-550.55,0.00019898,2]
[360549639,1746881445981,-400.0,0.00019898,2]
[360549640,1746881445991,-400.0,0.00019898,2]
[360549641,1746881446000,-218.993486,0.00019898,2]
[360549642,1746881446010,-450.64,0.00019898,2]
[360549643,1746881446019,-400.0,0.00019898,2]
[360549644,1746881446028,-400.0,0.00019898,2]
[360549645,1746881446038,-400.0,0.00019898,2]
[360549646,1746881446047,-400.0,0.00019898,2]
[360549647,1746881446057,-423.15,0.00019898,2]
[360549648,1746881446067,-400.0,0.00019898,2]
[360549649,1746881446076,-400.0,0.00019898,2]
[360549650,1746881446086,-400.0,0.00019898,2]
[360549651,1746881446096,-400.0,0.00019898,2]
[360549652,1746881446107,-400.0,0.00019898,2]
[360549653,1746881446116,-400.0,0.00019898,2]
[360549654,1746881446126,-400.0,0.00019898,2]
[360549655,1746881446135,-573.07,0.00019898,2]
[360549656,1746881446144,-400.0,0.00019898,2]
[360549657,1746881446154,-400.0,0.00019898,2]
[360549658,1746881446164,-151.0,0.00019898,2]
[360549659,1746881446174,-400.0,0.00019898,2]
[360549660,1746881446183,-400.0,0.00019898,2]
[360549661,1746881446194,-400.0,0.00019898,2]
[360549662,1746881446203,-400.0,0.00019898,2]
[360549663,1746881446213,-745.66,0.00019898,2]
[360549664,1746881446223,-400.0,0.00019898,2]
[360549665,1746881446233,-400.0,0.00019898,2]
[360549666,1746881446243,-482.91684738,0.00019898,2]
[360549667,1746881446252,-400.0,0.00019898,2]
[360549668,1746881446262,-400.0,0.00019898,2]
[360549669,1746881446271,-400.0,0.00019898,2]
[360549670,1746881446280,-400.0,0.00019898,2]
[360549671,1746881446290,-400.0,0.00019898,2]
[360549672,1746881446299,-400.0,0.00019898,2]
[360549673,1746881446308,-571.08,0.00019898,2]
[360549674,1746881446318,-400.0,0.00019898,2]
[360549675,1746881446327,-400.0,0.00019898,2]
[360549676,1746881446337,-151.0,0.00019898,2]
[360549677,1746881446346,-400.0,0.00019898,2]
[360549678,1746881446357,-151.0,0.00019898,2]
[360549679,1746881446366,-400.0,0.00019898,2]
[360549680,1746881446375,-400.0,0.00019898,2]
[360549681,1746881446386,-400.0,0.00019898,2]
[360549682,1746881446395,-400.0,0.00019898,2]
[360549684,1746881446404,-400.0,0.00019898,2]
[360549686,1746881446414,-164.46001811,0.00019898,2]
[360549688,1746881446423,-247.8807,0.00019898,2]
[360549690,1746881446432,-247.8807,0.00019898,2]
[360549692,1746881446442,-225.37,0.00019898,2]
[360549694,1746881446451,-482.4594818,0.00019898,2]
[360549696,1746881446460,-273.52843112,0.00019898,2]
[360549698,1746881446469,-151.0,0.00019898,2]
[360549700,1746881446479,-400.0,0.00019898,2]
[360549702,1746881446488,-151.0,0.00019898,2]
[360549704,1746881446497,-151.0,0.00019898,2]
[360549706,1746881446506,-151.0,0.00019898,2]
[360549707,1746881446516,-246.166111,0.00019898,2]
[360549709,1746881446525,-246.166111,0.00019898,2]
[360549710,1746881446534,-14181.1157,0.00019898,2]
[360549711,1746881446543,-151.916722,0.00019899,2]
[360549712,1746881446552,-151.0,0.00019899,2]
[360549713,1746881446562,-151.0,0.00019899,2]
[360549714,1746881446571,-151.0,0.00019899,2]
[360549715,1746881446580,-151.0,0.00019899,2]
[360549716,1746881446589,-151.0,0.00019899,2]
[360549717,1746881446599,-151.0,0.00019899,2]
[360549718,1746881446610,-151.0,0.00019899,2]
[360549719,1746881446619,-151.0,0.00019899,2]
[360549720,1746881446628,-151.925941,0.00019899,2]
[360549721,1746881446638,-157.070108,0.00019899,2]
[360549722,1746881446650,-151.0,0.00019899,2]
[360549723,1746881446659,-171.33993634,0.00019899,2]
[360549724,1746881446668,-176.222558,0.00019899,2]
[360549725,1746881446678,-151.0,0.00019899,2]
[360549726,1746881446687,-151.0,0.00019899,2]
[360549727,1746881446697,-151.0,0.00019899,2]
[360549728,1746881446706,-649.076946,0.00019899,2]
[360549729,1746881446716,-649.076946,0.00019899,2]
[360549730,1746881446726,-482.4594818,0.00019899,2]
[360549731,1746881446735,-772.8988,0.00019899,2]
[360549732,1746881446744,-166.26115376,0.000199,2]
[360549733,1746881446754,-170.5764002,0.000199,2]
[360549734,1746881446763,-12500.0,0.000199,2]
[360549735,1746881446772,-5087.57787935,0.000199,2]
[360549737,1746881446781,-1020.75339862,0.000199,2]
[360549739,1746881446790,-12500.0,0.000199,2]
[360549741,1746881446799,-500.0,0.00019973,2]
[360549743,1746881446808,-500.0,0.00019973,2]
[360549745,1746881446818,-449.59749502,0.00019973,2]
[360549747,1746881446827,-545.59939752,0.00019973,2]
[360549749,1746881446836,-156.59752591,0.00019973,2]
[360549751,1746881446845,-500.0,0.00019973,2]
[360549753,1746881446856,-500.0,0.00019973,2]
[360549755,1746881446866,-500.0,0.00019973,2]
[360549757,1746881446875,-151.0,0.00019973,2]
[360549759,1746881446884,-259.461554,0.00019973,2]
[360549760,1746881446893,-259.461554,0.00019973,2]
[360549761,1746881446903,-151.0,0.00019973,2]
[360549762,1746881446912,-234.54229237,0.00019988,2]
[360549763,1746881446921,-234.54229237,0.0001999,2]
[360549764,1746881446931,-234.54229237,0.0001999,2]
[360549765,1746881446939,-400.0,0.00019995,2]
[360549766,1746881446948,-9471.6785467,0.00019996,2]
[360549767,1746881446957,-100643.4655,0.00019996,2]
[360549768,1746881446966,-400.0,0.00019997,2]
[360549769,1746881446975,-400.0,0.00019997,2]
[360549770,1746881446984,-400.0,0.00019997,2]
[360549771,1746881446992,-400.0,0.00019997,2]
[360549772,1746881447001,-400.0,0.00019997,2]
[360549773,1746881447010,-400.0,0.00019997,2]
[360549774,1746881447019,-437.83,0.00019997,2]
[360549775,1746881447028,-400.0,0.00019998,2]
[360549776,1746881447037,-162.12868057,0.00019998,2]
[360549777,1746881447046,-400.0,0.00019998,2]
[360549778,1746881447055,-400.0,0.00019998,2]
[360549779,1746881447065,-400.0,0.00019998,2]
[360549780,1746881447073,-436.64,0.00019998,2]
[360549781,1746881447083,-400.0,0.00019998,2]
[360549782,1746881447092,-400.0,0.00019998,2]
[360549783,1746881447102,-400.0,0.00019998,2]
[360549784,1746881447112,-174.38,0.00019998,2]
[360549785,1746881447122,-400.0,0.00019998,2]
[360549786,1746881447132,-400.0,0.00019998,2]
[360549787,1746881447279,-353.575678,0.00019998,2]
[360549788,1746881447290,-400.0,0.00019998,2]
[360549789,1746881447300,-400.0,0.00019998,2]
[360549790,1746881447309,-400.0,0.00019998,2]
[360549791,1746881447318,-400.0,0.00019998,2]
[360549792,1746881447327,-356.47,0.00019998,2]
[360549793,1746881447336,-400.0,0.00019998,2]
[360549794,1746881447346,-400.0,0.00019998,2]
[360549795,1746881447356,-242.12251625,0.00019998,2]
[360549796,1746881447365,-151.0,0.00019998,2]
[360549797,1746881447375,-400.0,0.00019998,2]
[360549798,1746881447384,-190.83996,0.00019998,2]
[360549799,1746881447393,-400.0,0.00019998,2]
[360549800,1746881447402,-400.0,0.00019998,2]
[360549801,1746881447412,-400.0,0.00019998,2]
[360549802,1746881447420,-268.31,0.00019998,2]
[360549803,1746881447429,-400.0,0.00019998,2]
[360549804,1746881447438,-151.0,0.00019998,2]
[360549805,1746881447447,-400.0,0.00019998,2]
[360549806,1746881447457,-151.0,0.00019998,2]
[360549807,1746881447466,-400.0,0.00019998,2]
[360549808,1746881447475,-400.0,0.00019998,2]
[360549809,1746881447484,-151.0,0.00019998,2]
[360549810,1746881447493,-187.15516129,0.00019998,2]
[360549811,1746881447503,-400.0,0.00019998,2]
[360549812,1746881447512,-151.0,0.00019998,2]
[360549813,1746881447521,-151.0,0.00019998,2]
[360549815,1746881447530,-151.0,0.00019998,2]
[360549817,1746881447539,-151.0,0.00019998,2]
[360549819,1746881447548,-151.0,0.00019998,2]
[360549820,1746881447557,-400.0,0.00019998,2]
[360549821,1746881447567,-400.0,0.00019998,2]
[360549822,1746881447576,-228.15,0.00019998,2]
[360549823,1746881447585,-209.6,0.00019998,2]
[360549824,1746881447595,-400.0,0.00019998,2]
[360549825,1746881447604,-400.0,0.00019998,2]
[360549826,1746881447614,-400.0,0.00019998,2]
[360549827,1746881447623,-151.0,0.00019998,2]
[360549828,1746881447633,-733.4,0.00019998,2]
[360549829,1746881447642,-151.0,0.00019998,2]
[360549830,1746881447655,-400.0,0.00019998,2]
[360549831,1746881447664,-400.0,0.00019998,2]
[360549832,1746881447674,-519.47,0.00019998,2]
[360549833,1746881447683,-400.0,0.00019998,2]
[360549834,1746881447692,-400.0,0.00019998,2]
[360549835,1746881447702,-400.0,0.00019998,2]
[360549836,1746881447712,-400.0,0.00019998,2]
[360549837,1746881447721,-400.0,0.00019998,2]
[360549838,1746881447731,-400.0,0.00019998,2]
[360549839,1746881447740,-400.0,0.00019998,2]
[360549840,1746881447750,-151.0,0.00019998,2]
[360549841,1746881447759,-151.0,0.00019998,2]
[360549842,1746881447769,-413.6,0.00019998,2]
[360549843,1746881447778,-419.53,0.00019998,2]
[360549844,1746881447788,-151.0,0.00019998,2]
[360549845,1746881447797,-151.0,0.00019998,2]
[360549846,1746881447806,-208.6464,0.00019998,2]
[360549847,1746881447815,-659.28,0.00019998,2]
[360549848,1746881447825,-400.0,0.00019998,2]
[360549849,1746881447834,-400.0,0.00019998,2]
[360549850,1746881447844,-400.0,0.00019998,2]
[360549851,1746881447854,-408.64,0.00019998,2]
[360549852,1746881447864,-151.0,0.00019998,2]
[360549853,1746881447874,-400.0,0.00019998,2]
[360549854,1746881447883,-400.0,0.00019998,2]
[360549855,1746881447892,-523.04,0.00019998,2]
[360549856,1746881447901,-471.71,0.00019998,2]
[360549857,1746881447911,-155.331199,0.00019998,2]
[360549858,1746881447920,-400.0,0.00019998,2]
[360549859,1746881447930,-400.0,0.00019998,2]
[360549860,1746881447938,-400.0,0.00019998,2]
[360549861,1746881447948,-550.55,0.00019998,2]
[360549862,1746881447957,-400.0,0.00019998,2]
[360549863,1746881447966,-400.0,0.00019998,2]
[360549865,1746881447975,-400.0,0.00019998,2]
[360549867,1746881447985,-450.64,0.00019998,2]
[360549868,1746881447994,-400.0,0.00019998,2]
[360549869,1746881448003,-400.0,0.00019998,2]
[360549870,1746881448012,-400.0,0.00019998,2]
[360549871,1746881448021,-423.15,0.00019998,2]
[360549872,1746881448031,-400.0,0.00019998,2]
[360549873,1746881448040,-400.0,0.00019998,2]
[360549874,1746881448049,-400.0,0.00019998,2]
[360549875,1746881448059,-400.0,0.00019998,2]
[360549876,1746881448069,-400.0,0.00019998,2]
[360549877,1746881448078,-400.0,0.00019998,2]
[360549878,1746881448088,-573.07,0.00019998,2]
[360549879,1746881448097,-400.0,0.00019998,2]
[360549880,1746881448106,-400.0,0.00019998,2]
[360549881,1746881448116,-154.091666,0.00019998,2]
[360549882,1746881448125,-400.0,0.00019998,2]
[360549883,1746881448135,-400.0,0.00019998,2]
[360549884,1746881448144,-400.0,0.00019998,2]
[360549885,1746881448153,-400.0,0.00019998,2]
[360549886,1746881448163,-745.66,0.00019998,2]
[360549887,1746881448173,-400.0,0.00019998,2]
[360549888,1746881448182,-400.0,0.00019998,2]
[360549889,1746881448192,-420.15511668,0.00019998,2]
[360549890,1746881448202,-400.0,0.00019998,2]
[360549891,1746881448211,-400.0,0.00019998,2]
[360549892,1746881448221,-400.0,0.00019998,2]
[360549893,1746881448231,-400.0,0.00019998,2]
[360549894,1746881448241,-400.0,0.00019998,2]
[360549895,1746881448250,-430.7527962,0.00019998,2]
[360549896,1746881448262,-571.08,0.00019998,2]
[360549897,1746881448272,-400.0,0.00019998,2]
[360549898,1746881448281,-151.0,0.00019998,2]
[360549899,1746881448292,-649.076946,0.00019998,2]
[360549900,1746881448302,-649.076946,0.00019998,2]
[360549901,1746881448312,-649.076946,0.00019998,2]
[360549902,1746881448322,-649.076946,0.00019998,2]
[360549903,1746881448332,-400.0,0.00019998,2]
[360549904,1746881448342,-400.0,0.00019998,2]
[360549905,1746881448352,-400.0,0.00019998,2]
[360549906,1746881448363,-400.0,0.00019998,2]
[360549907,1746881448373,-400.0,0.00019998,2]
[360549908,1746881448383,-400.0,0.00019998,2]
[360549909,1746881448394,-400.0,0.00019998,2]
[360549910,1746881448403,-400.0,0.00019998,2]
[360549911,1746881448412,-400.0,0.00019998,2]
[360549912,1746881448422,-400.0,0.00019998,2]
[360549913,1746881448432,-400.0,0.00019998,2]
[360549914,1746881448441,-289.61710536,0.00019998,2]
[360549915,1746881448451,-400.0,0.00019998,2]
[360549916,1746881448460,-400.0,0.00019998,2]
[360549917,1746881448470,-400.0,0.00019998,2]
[360549918,1746881448479,-400.0,0.00019998,2]
[360549919,1746881448488,-400.0,0.00019998,2]
[360549920,1746881448498,-400.0,0.00019998,2]
[360549921,1746881448507,-400.0,0.00019998,2]
[360549922,1746881448516,-247.8807,0.00019998,2]
[360549923,1746881448526,-247.8807,0.00019998,2]
[360549924,1746881448535,-400.0,0.00019998,2]
[360549925,1746881448544,-400.0,0.00019998,2]
[360549926,1746881448554,-400.0,0.00019998,2]
[360549927,1746881448563,-400.0,0.00019998,2]
[360549928,1746881448573,-400.0,0.00019998,2]
[360549929,1746881448583,-151.0,0.00019998,2]
[360549930,1746881448593,-400.0,0.00019998,2]
[360549931,1746881448603,-400.0,0.00019998,2]
[360549932,1746881448612,-363.98496124,0.00019998,2]
[360549933,1746881448622,-268.21107,0.00019998,2]
[360549934,1746881448631,-151.0,0.00019998,2]
[360549935,1746881448641,-151.0,0.00019998,2]
[360549936,1746881448652,-400.0,0.00019998,2]
[360549937,1746881448662,-300.0,0.00019998,2]
[360549938,1746881448672,-246.166111,0.00019998,2]
[360549939,1746881448681,-246.166111,0.00019998,2]
[360549940,1746881448691,-400.0,0.00019998,2]
[360549941,1746881448701,-423.22,0.00019998,2]
[360549942,1746881448710,-372.41891643,0.00019998,2]
[360549943,1746881448720,-568.0,0.00019998,2]
[360549944,1746881448729,-408275.82434338,0.00019999,2]
[360549945,1746881449055,-1209.68440101,0.00019999,2]
[360549946,1746881449069,-8806.89775709,0.00019999,2]
[360549947,1746881449084,-2451.938759,0.00019999,2]
[360549948,1746881449164,-542.11933806,0.00019755,2]
[360549949,1746881449176,-177.78066193,0.00019999,2]
[360549950,1746881449191,-556.15244634,0.00019999,2]
[360549951,1746881449205,-5676.54905495,0.00019999,2]
[360549952,1746881449224,-431.11603284,0.00019999,2]
[360549953,1746881449239,-855.767,0.00019999,2]
[360549962,1746881529143,169.30358988,0.00017059,2]
[360549963,1746881529167,204.20113523,0.00017059,2]
[360549964,1746881529189,159.25,0.00017059,2]
[360549967,1746881586071,150.0,0.00018986,7]
[360549968,1746881601394,290.0,0.0003,120]
[360549969,1746881608941,500.0,0.00016438,2]
[360549970,1746881609262,466.50288411,0.00016438,2]
[360549974,1746881686843,1000.0,0.00013699,2]
[360549975,1746881695667,150.0,0.00030137,120]
[360549978,1746881705278,173.55,0.00016621,2]
[360549982,1746881780784,4006.69,0.0003,30]
[360549983,1746881818884,10000.0,0.0003,30]
[360549984,1746881949813,500.0,0.00016438,2]
[360549985,1746881949957,500.0,0.00016438,2]
[360549986,1746881950385,500.0,0.00016438,2]
[360549987,1746881950736,500.0,0.00016438,2]
[360549988,1746881951051,500.0,0.00016438,2]
[360549990,1746881968284,-20.75527489,0.00017059,2]
[360549991,1746881968308,-201.19454112,0.00018142,2]
[360549997,1746882284139,214.54,0.00028298,120]
[360549998,1746882295723,-223.49909439,0.00018304,2]
[360550000,1746882395092,-26.50090561,0.00018304,2]
[360550001,1746882395115,-268.51311079,0.00018465,2]
[360550002,1746882398323,1030.00692282,0.0003,30]
[360550003,1746882425135,-201.4336801,0.00018465,2]
[360550004,1746882436083,-197.53821293,0.00018465,2]
[360550005,1746882436130,-275.56717872,0.00018465,2]
[360550006,1746882447143,-186.07908962,0.00018465,2]
[360550011,1746882535441,9352.45,0.0003,30]
[360550019,1746882576003,-70.86872784,0.00018465,2]
[360550020,1746882576028,-81.42245647,0.00018465,2]
[360550025,1746882613508,159.25,0.00016438,2]
[360550026,1746882613535,340.75,0.00016438,2]
[360550027,1746882613758,500.0,0.00016438,2]
[360550028,1746882614077,500.0,0.00016438,2]
[360550029,1746882614411,500.0,0.00016438,2]
[360550030,1746882614733,500.0,0.00016438,2]
[360550031,1746882631401,-334.19876297,0.00018465,2]
[360550032,1746882631457,-865.80123703,0.00018465,2]
[360550033,1746882631467,-250.0,0.00018466,2]
[360550034,1746882631476,-357.94300621,0.00018466,2]
[360550035,1746882631488,-642.05699379,0.00018466,2]
[360550036,1746882631497,-4000.0,0.00018466,2]
[360550037,1746882631507,-214.54,0.00018865,2]
[360550038,1746882631517,-250.0,0.00018916,2]
[360550039,1746882631526,-4822.71,0.00019,2]
[360550040,1746882631535,-4822.71,0.00019,2]
[360550041,1746882631545,-1870.38069011,0.00019,2]
[360550042,1746882631560,-2952.32930989,0.00019,2]
[360550043,1746882631569,-369.651196,0.00019226,2]
[360550044,1746882631579,-200.0,0.00019748,2]
[360550045,1746882631588,-215.46417846,0.0001975,2]
[360550046,1746882631598,-400.0,0.0001975,2]
[360550047,1746882631608,-400.0,0.0001975,2]
[360550048,1746882631618,-400.0,0.0001975,2]
[360550049,1746882631627,-400.0,0.0001975,2]
[360550050,1746882631637,-400.0,0.0001975,2]
[360550051,1746882631646,-400.0,0.0001975,2]
[360550052,1746882631656,-400.0,0.0001975,2]
[360550053,1746882631665,-400.0,0.0001975,2]
[360550054,1746882631674,-400.0,0.0001975,2]
[360550055,1746882631684,-400.0,0.0001975,2]
[360550056,1746882631693,-400.0,0.0001975,2]
[360550057,1746882631702,-400.0,0.0001975,2]
[360550058,1746882631711,-400.0,0.0001975,2]
[360550059,1746882631720,-400.0,0.0001975,2]
[360550060,1746882631730,-400.0,0.0001975,2]
[360550061,1746882631739,-274.88189058,0.0001975,2]
[360550062,1746882631748,-400.0,0.0001975,2]
[360550063,1746882631758,-400.0,0.0001975,2]
[360550064,1746882631768,-400.0,0.0001975,2]
[360550065,1746882631777,-400.0,0.0001975,2]
[360550066,1746882631787,-672.28,0.0001975,2]
[360550067,1746882631797,-400.0,0.0001975,2]
[360550068,1746882631806,-400.0,0.0001975,2]
[360550069,1746882631816,-400.0,0.0001975,2]
[360550070,1746882631825,-400.0,0.0001975,2]
[360550071,1746882631835,-367.19342507,0.0001975,2]
[360550072,1746882631847,-32.80657493,0.0001975,2]
[360550073,1746882631857,-383.33264018,0.0001975,2]
[360550074,1746882631868,-16.66735982,0.0001975,2]
[360550075,1746882631878,-400.0,0.0001975,2]
[360550076,1746882631888,-604.34,0.0001975,2]
[360550077,1746882631897,-400.0,0.0001975,2]
[360550078,1746882631907,-400.0,0.0001975,2]
[360550079,1746882631916,-479.45,0.0001975,2]
[360550080,1746882631926,-400.0,0.0001975,2]
[360550081,1746882631936,-400.0,0.0001975,2]
[360550082,1746882631947,-400.0,0.0001975,2]
[360550083,1746882631958,-400.0,0.0001975,2]
[360550084,1746882631968,-400.0,0.0001975,2]
[360550085,1746882631978,-400.0,0.0001975,2]
[360550086,1746882631987,-413.09,0.0001975,2]
[360550087,1746882631997,-400.0,0.0001975,2]
[360550088,1746882632008,-400.0,0.0001975,2]
[360550089,1746882632020,-676.14,0.0001975,2]
[360550090,1746882632030,-400.0,0.0001975,2]
[360550091,1746882632042,-523.49,0.0001975,2]
[360550092,1746882632053,-683.53,0.0001975,2]
[360550093,1746882632063,-400.0,0.0001975,2]
[360550094,1746882632074,-209.58,0.0001975,2]
[360550095,1746882632084,-400.0,0.0001975,2]
[360550096,1746882632093,-207.4,0.00019754,2]
[360550097,1746882632103,-200.0,0.00019757,2]
[360550098,1746882632113,-500.0,0.00019763,2]
[360550099,1746882632122,-500.0,0.00019763,2]
[360550100,1746882632133,-636.02164484,0.00019763,2]
[360550101,1746882632143,-500.0,0.00019763,2]
[360550102,1746882632152,-500.0,0.00019763,2]
[360550103,1746882632161,-500.0,0.00019763,2]
[360550104,1746882632171,-500.0,0.00019763,2]
[360550105,1746882632180,-500.0,0.00019763,2]
[360550106,1746882632190,-500.0,0.00019763,2]
[360550107,1746882632199,-500.0,0.00019763,2]
[360550108,1746882632208,-500.0,0.00019763,2]
[360550109,1746882632218,-299.5085387,0.00019763,2]
[360550110,1746882632228,-500.0,0.00019763,2]
[360550111,1746882632237,-500.0,0.00019763,2]
[360550112,1746882632247,-500.0,0.00019763,2]
[360550113,1746882632257,-500.0,0.00019763,2]
[360550114,1746882632267,-500.0,0.00019763,2]
[360550115,1746882632278,-500.0,0.00019763,2]
[360550116,1746882632287,-500.0,0.00019763,2]
[360550117,1746882632297,-500.0,0.00019763,2]
[360550118,1746882632306,-500.0,0.00019763,2]
[360550119,1746882632316,-500.0,0.00019763,2]
[360550120,1746882632325,-500.0,0.00019763,2]
[360550121,1746882632335,-500.0,0.00019763,2]
[360550122,1746882632344,-500.0,0.00019763,2]
[360550123,1746882632354,-500.0,0.00019763,2]
[360550124,1746882632364,-500.0,0.00019763,2]
[360550125,1746882632373,-500.0,0.00019763,2]
[360550126,1746882632382,-500.0,0.00019763,2]
[360550127,1746882632392,-500.0,0.00019763,2]
[360550128,1746882632403,-500.0,0.00019763,2]
[360550129,1746882632413,-500.0,0.00019763,2]
[360550130,1746882632423,-500.0,0.00019763,2]
[360550131,1746882632432,-500.0,0.00019763,2]
[360550132,1746882632442,-500.0,0.00019763,2]
[360550133,1746882632451,-500.0,0.00019763,2]
[360550134,1746882632461,-500.0,0.00019763,2]
[360550135,1746882632471,-500.0,0.00019763,2]
[360550136,1746882632481,-500.0,0.00019763,2]
[360550137,1746882632492,-400.0,0.00019763,2]
[360550138,1746882632502,-500.0,0.00019763,2]
[360550139,1746882632513,-500.0,0.00019763,2]
[360550140,1746882632522,-500.0,0.00019763,2]
[360550141,1746882632531,-500.0,0.00019763,2]
[360550142,1746882632541,-500.0,0.00019763,2]
[360550143,1746882632551,-342.6112602,0.00019766,2]
[360550144,1746882632561,-400.0,0.00019766,2]
[360550145,1746882632570,-400.0,0.00019766,2]
[360550146,1746882632580,-400.0,0.00019766,2]
[360550147,1746882632590,-400.0,0.00019766,2]
[360550148,1746882632599,-400.0,0.00019766,2]
[360550149,1746882632610,-432.4,0.00019766,2]
[360550150,1746882632620,-400.0,0.00019766,2]
[360550151,1746882632629,-400.0,0.00019766,2]
[360550152,1746882632639,-400.0,0.00019766,2]
[360550153,1746882632648,-400.0,0.00019766,2]
[360550154,1746882632844,-400.0,0.00019766,2]
[360550155,1746882632856,-400.0,0.00019766,2]
[360550156,1746882632865,-400.0,0.00019766,2]
[360550157,1746882632875,-400.0,0.00019766,2]
[360550158,1746882632885,-400.0,0.00019766,2]
[360550159,1746882632895,-400.0,0.00019766,2]
[360550160,1746882632904,-400.0,0.00019766,2]
[360550161,1746882632914,-400.0,0.00019766,2]
[360550162,1746882632923,-400.0,0.00019766,2]
[360550163,1746882632933,-400.0,0.00019766,2]
[360550164,1746882632943,-400.0,0.00019766,2]
[360550165,1746882632952,-504.67,0.00019766,2]
[360550166,1746882632962,-400.0,0.00019766,2]
[360550167,1746882632971,-400.0,0.00019766,2]
[360550168,1746882632981,-400.0,0.00019766,2]
[360550169,1746882632991,-400.0,0.00019766,2]
[360550170,1746882633002,-524.97799727,0.00019766,2]
[360550171,1746882633011,-400.0,0.00019766,2]
[360550172,1746882633020,-400.0,0.00019766,2]
[360550173,1746882633030,-2624.24,0.00019786,2]
[360550174,1746882633042,-2204.76,0.00019786,2]
[360550175,1746882633052,-2410.65,0.00019786,2]
[360550176,1746882633064,-162.5,0.000198,2]
[360550177,1746882633074,-475.61041044,0.000198,2]
[360550178,1746882633085,-475.61041037,0.00019811,2]
[360550179,1746882633095,-200.0,0.00019811,2]